Cogmind - Beta 16.1 @@@ ROGUE MODE // 2026.03.28 @ 03:53:22 Player: morimori Result: Destroyed by L-61 Swordsman with Power Sword Performance ------------- Evolutions (6) 3000 Regions Visited (22) 4400 Robots Destroyed (235) 1175 Value Destroyed (8153) 8153 Prototype IDs (33) 660 Alien Tech Used (1) 200 Bonus (7796) 7796 TOTAL SCORE: 25384 Bonus ------- High Alert Combat Kills 414 Follower Combat Kills 2572 Hunted by Unchained 500 Awakened Behemoth Slayer 1000 Network Hubs Disabled 400 Met Warlord at Base 500 MAIN.C Attacked Warlord 500 Warlord Defense Kills 1588 Built Enhanced Grunts 300 Met R17 at Cetus 500 Friendly Fire -478 Cogmind --------- Core Integrity 0/1150 Matter 299/300 Energy 100/100 System Corruption 6% Temperature Cool (0) Movement Core (700) Ox13 Location -4/Factory Parts ------- > --- POWER (1) -------- (None) > --- PROPULSION (6) --- (None) > --- UTILITY (10) ----- High-capacity Storage Unit Experimental Core Analyzer Advanced Hacking Suite Experimental Hacking Suite > --- WEAPON (3) ------- (None) > --- INVENTORY (20) --- Micro Fission Core Vortex Chain Reactor Huge Storage Unit Faulty Experimental Optical Array Weapon Mount Improved Armor Integrity Analyzer Precision Energy Filter Precision Energy Filter Experimental Utility Shielding Experimental Utility Shielding Graphene Brace Experimental Focal Shield Improved Force Field Vortex Rifle (35) Vortex Rifle (34) Matter Neutralizer Gamma Bomb Array Long-range Missile Launcher CR-A16's Behemoth Slayer Peak State ------------ > --- POWER ------------ Antimatter Reactor > --- PROPULSION ------- Combat Airjet Gravmag Array Antigrav System Cooled Antigrav System Combat Linear Gravjet > --- UTILITY ---------- High-capacity Storage Unit Enhanced Optical Array Advanced Signal Interpreter Experimental Core Analyzer Advanced Reaction Control System Experimental Utility Shielding Experimental Focal Shield Improved Hacking Suite Advanced Hacking Suite Experimental Hacking Suite > --- WEAPON ----------- Advanced KE Penetrator Advanced KE Penetrator CR-A16's Behemoth Slayer > --- INVENTORY -------- Micro Fission Core Micro Fission Core Vortex Chain Reactor Improved Antigrav System Huge Storage Unit Experimental Optical Array Experimental Sensor Array Weapon Mount Precision Energy Filter Experimental Utility Shielding Graphene Brace Improved Force Field Vortex Rifle Vortex Rifle Matter Neutralizer Railgun Gamma Bomb Array Long-range Missile Launcher [Rating: 146] Favorites ----------- Power Light Nuclear Core Engine Light Angular Momentum Engine Power Core Light Nuclear Core Reactor Antimatter Reactor Propulsion Armored Wheel Treads Medium Treads Leg Carbon-fiber Leg Wheel Armored Wheel Hover Unit Improved Airjet Utility Improved Hacking Suite Device Seismic Detector Storage Large Storage Unit Processor Advanced Visual Processing Unit Hackware Improved Hacking Suite Protection Medium Armor Plating Weapon Heavy Assault Rifle Energy Gun Spread Laser Energy Cannon Heavy Ion Cannon Ballistic Gun Heavy Assault Rifle Ballistic Cannon Bore Cannon Launcher Rocket Launcher Slashing Weapon Mining Claw Piercing Weapon CR-A16's Behemoth Slayer Build | -11 -10 -10 -9 -9 -8 -8 -7 -7 -7 -7 -6 -6 -6 -6 -6 -6 -5 -5 -5 -5 -4 -4 ------- Run | Yrd Mat Min Mat Min Mat Sto Fac Low Low Zio Pro Fac Ext Cet Arc Hub Fac Upp Upp War Pro Fac Slots Evolved 12 | . . . 2 . 2 . 2 . . . . 2 . . . . 2 . . . . 2 Power . | . . . . . . . . . . . . . . . . . . . . . . . Propulsion 4 | . . . . . 2 . 1 . . . . . . . . . 1 . . . . . Utility 8 | . . . 2 . . . 1 . . . . 2 . . . . 1 . . . . 2 Weapon . | . . . . . . . . . . . . . . . . . . . . . . . Parts Attached 231 | 7 6 11 21 3 28 19 16 3 2 2 1 7 21 3 11 7 15 5 2 9 . 32 Power 22 | 1 . . 1 1 2 1 3 . . . 1 1 4 . 2 . 2 . . . . 3 Engine 11 | 1 . . . . 1 . 1 . . . . . 4 . 2 . 1 . . . . 1 Core 10 | . . . 1 1 1 1 2 . . . 1 1 . . . . 1 . . . . 1 Reactor 1 | . . . . . . . . . . . . . . . . . . . . . . 1 Propulsion 61 | 2 1 7 5 . 7 5 7 . . . . 1 4 . 5 1 4 2 1 4 . 5 Treads 14 | 1 . 1 3 . 4 5 . . . . . . . . . . . . . . . . Leg 1 | . . . . . . . . . . . . . 1 . . . . . . . . . Wheel 13 | 1 1 6 2 . 2 . . . . . . . . . . . 1 . . . . . Hover 33 | . . . . . 1 . 7 . . . . 1 3 . 5 1 3 2 1 4 . 5 Flight . | . . . . . . . . . . . . . . . . . . . . . . . Utility 81 | 2 4 . 8 2 9 1 4 2 2 . . 5 3 1 4 2 8 2 1 3 . 18 Device 29 | 1 2 . 3 . 3 . 2 1 . . . 1 1 . 2 . 4 2 1 1 . 5 Storage 7 | 1 2 . 1 . . . . 1 . . . . . . . . 1 . . 1 . . Processor 7 | . . . 1 . 1 1 1 . . . . 1 . . . . . . . . . 2 Hackware 19 | . . . . . . . . . . . . 3 1 . 1 2 3 . . . . 9 Protection 19 | . . . 3 2 5 . 1 . 2 . . . 1 1 1 . . . . 1 . 2 Artifact . | . . . . . . . . . . . . . . . . . . . . . . . Weapon 67 | 2 1 4 7 . 10 12 2 1 . 2 . . 10 2 . 4 1 1 . 2 . 6 Energy Gun 4 | 1 . . . . 1 . . . . . . . . . . . . . . 2 . . Energy Cannon 7 | . . . . . . . 1 . . . . . 2 . . 1 1 . . . . 2 Ballistic Gun 32 | 1 1 2 6 . 6 6 . . . . . . 2 2 . 3 . . . . . 3 Ballistic Cannon 8 | . . . . . 1 1 1 . . . . . 5 . . . . . . . . . Launcher 13 | . . 2 . . 2 5 . 1 . 1 . . . . . . . 1 . . . 1 Special Weapon . | . . . . . . . . . . . . . . . . . . . . . . . Impact Weapon . | . . . . . . . . . . . . . . . . . . . . . . . Slashing Weapon 1 | . . . 1 . . . . . . . . . . . . . . . . . . . Piercing Weapon 2 | . . . . . . . . . . 1 . . 1 . . . . . . . . . Special Melee Weapon . | . . . . . . . . . . . . . . . . . . . . . . . Unidentified Prototypes 16 | . . . . . 1 3 . . . 1 . . . 2 . . 1 . 1 6 . 1 Corrupted Parts 5 | . . . . . . . . . . . . . . 2 . 3 . . . . . . System Corruption 40 | . . . . . . . . . . . . . . 20 . 20 . . . . . . Parts Lost 40 | . 1 2 1 . 4 5 . . . . . . 4 . . 1 5 1 1 . . 15 Power 5 | . . . . . . . . . . . . . . . . . 1 . . . . 4 Propulsion 20 | . 1 1 . . 1 4 . . . . . . 2 . . . 3 1 1 . . 6 Utility 10 | . . . 1 . 2 1 . . . . . . 1 . . . 1 . . . . 4 Weapon 5 | . . 1 . . 1 . . . . . . . 1 . . 1 . . . . . 1 Highest Loss Streak 10 | . 1 2 1 . 3 2 . . . . . . 2 . . 1 5 1 1 . . 10 To Critical Strikes . | . . . . . . . . . . . . . . . . . . . . . . . Average Backups 18 | 3 12 14 16 24 24 24 14 13 14 14 14 13 13 14 14 14 15 19 19 19 19 18 Power 1 | 1 1 2 2 3 2 2 1 1 1 1 1 . 1 2 1 1 . 1 1 1 2 2 Propulsion 3 | 1 6 6 7 9 7 6 1 1 1 1 1 1 . 1 1 1 . . . . . 1 Utility 7 | . 1 1 3 7 10 11 7 6 7 8 8 8 5 5 6 8 9 13 13 13 13 9 Weapon 4 | . 3 4 3 5 5 5 5 5 4 4 4 4 5 6 5 4 4 3 2 3 4 5 Tool/Special . | . . . . . . . . . . . . . . . . . . . . . . . Unused Backups 78 | . 5 3 7 2 15 5 3 1 1 1 1 1 6 1 2 . 5 . . 7 . 12 Power 9 | . 1 1 1 . 2 . . . . . . . 1 . 1 . . . . . . 2 Propulsion 18 | . 2 1 2 . 6 2 1 . . . . . . . 1 . . . . . . 3 Utility 24 | . 1 1 1 1 2 . 2 1 . 1 1 1 2 . . . 1 . . 4 . 5 Weapon 24 | . 1 . 3 1 5 3 . . 1 . . . 3 1 . . 3 . . 1 . 2 Tool/Special 3 | . . . . . . . . . . . . . . . . . 1 . . 2 . . Average Slot Usage (%) 96 | . 99 97 99 100 99 93 99 100 100 100 100 99 99 88 93 92 88 93 92 94 94 91 Engine 3 | . 14 14 1 . 4 . . . . . . . 5 6 6 6 4 . . . . . Core 4 | . . . 9 11 4 8 7 7 7 7 7 6 . . . . . 5 5 5 5 1 Treads 6 | . 14 13 11 11 17 18 . . . . . . . . . . . . . . . . Wheel 6 | . 13 14 11 11 17 12 . . . . . . . . . . 3 . . . . . Hover 16 | . . . . . . . 37 38 38 38 38 33 32 26 26 26 20 28 27 27 27 24 Device 10 | . 14 14 25 14 13 12 7 6 7 7 6 6 5 . 4 5 4 5 5 9 11 7 Storage 8 | . 14 14 11 11 9 9 7 7 7 7 7 6 12 13 7 6 5 5 5 5 5 5 Processor 6 | . . . . . . 2 14 15 15 15 15 13 13 13 13 13 11 11 11 6 5 11 Hackware 7 | . . . . . . . . . . . . 19 13 13 13 13 22 23 22 22 22 22 Protection 5 | . . . 7 18 13 11 6 7 7 7 7 . . 6 6 5 . . . . . 1 Energy Cannon 1 | . . . . . . . 5 6 5 6 7 6 4 . . 2 2 4 4 . . . Ballistic Gun 11 | . 27 16 21 22 13 11 8 6 8 . . . 1 5 11 4 3 . 3 10 11 7 Piercing Weapon 1 | . . . . . . . . . . 5 6 6 3 1 . 5 4 5 5 4 4 4 Peak Build Rating 146 | 7 10 12 21 22 37 48 53 54 54 55 55 68 74 80 87 86 99 97 107 123 125 146 Average Rating 57 | 5 8 10 19 21 31 39 51 52 53 54 54 65 69 73 83 84 84 95 100 114 119 133 On Entrance 58 | . 7 10 11 21 22 35 37 53 52 54 55 54 68 72 80 86 81 99 95 104 119 120 Avg Prop Armor Cover (%) 9 | 14 11 11 8 6 11 8 . . . . . . . . . . 5 . . . . 2 Naked Turns . | . . . . . . . . . . . . . . . . . . . . . . . Heaviest Build 114 | 14 30 33 97 106 108 114 95 44 42 45 45 39 55 49 50 51 68 60 65 68 71 79 Greatest Support 88 | 10 16 20 12 12 24 88 44 44 44 44 44 49 51 51 52 52 67 69 71 75 75 87 Greatest Overweight (x) 15 | 1 2 3 8 8 4 9 2 . . 1 1 . 1 . . . 1 1 . . . 15 Average Overweight (x) . | . 1 1 3 8 3 3 . . . . . . . . . . . . . . . . Largest Inventory Capacity 25 | 8 15 15 25 25 25 25 25 15 15 15 15 15 15 15 15 15 20 20 20 20 20 20 Average Capacity 18 | 7 13 15 17 25 25 25 15 15 15 15 15 15 15 15 15 15 16 20 20 20 20 20 Most Carried 25 | 6 15 15 25 25 25 25 25 15 15 15 15 15 15 15 15 15 20 20 20 20 20 20 Average Carried 18 | 4 13 14 16 24 24 24 15 14 14 15 15 14 14 14 14 14 15 19 19 19 19 19 Final Capacity 25 | 8 15 15 25 25 25 25 15 15 15 15 15 15 15 15 15 15 20 20 20 20 20 20 Final Carried 25 | 6 15 15 24 25 25 25 15 15 15 15 15 15 15 15 15 14 20 19 19 20 20 20 Class Distribution -------------------- 39% | Mutant 19% | Hacker-Scout 15% | Scout 9% | Hacker-Mutant 6% | Commander-Mutant 3% | Commander-Scout Dominant Class ---------------- Mutant | -10/Materials Mutant | -10/Mines Mutant | -9/Materials Mutant | -9/Mines Mutant | -8/Materials Mutant | -8/Storage Scout | -7/Factory Scout | -7/Lower Caves Scout | -7/Lower Caves Scout | -7/Zion Scout | -6/Proximity Caves Hacker-Scout | -6/Factory Hacker-Scout | -6/Extension Commander-Mutant | -6/Cetus Commander-Mutant | -6/Archives Commander-Scout | -6/Hub_04(d) Hacker-Scout | -5/Factory Hacker-Scout | -5/Upper Caves Hacker-Scout | -5/Upper Caves Hacker-Mutant | -5/Warlord Hacker-Mutant | -4/Proximity Caves Hacker-Scout | -4/Factory Resources | -11 -10 -10 -9 -9 -8 -8 -7 -7 -7 -7 -6 -6 -6 -6 -6 -6 -5 -5 -5 -5 -4 -4 ----------- Run | Yrd Mat Min Mat Min Mat Sto Fac Low Low Zio Pro Fac Ext Cet Arc Hub Fac Upp Upp War Pro Fac Matter Collected 10463 | 288 326 581 793 86 1104 1736 140 249 220 40 126 60 648 162 543 98 720 144 341 643 173 1242 Remotely . | . . . . . . . . . . . . . . . . . . . . . . . Salvage Created 9629 | 118 348 234 985 63 989 1577 30 74 52 . 208 20 838 347 405 812 580 81 159 532 54 1123 Parts 525 | 11 22 12 81 2 50 74 2 8 3 . 2 3 37 14 25 38 27 11 7 22 7 67 Haulers Intercepted 18 | . 2 . 5 . 6 4 . . . . . . . . . 1 . . . . . . Recyclers Shooed 8 | . 1 . 1 . . . . . . . . . . . . 1 2 . . . . 3 Parts Field Recycled . | . . . . . . . . . . . . . . . . . . . . . . . Retrieved Matter . | . . . . . . . . . . . . . . . . . . . . . . . Parts Self-Destructed 30 | . . . . . . . . 5 3 . . . . . . . . 13 3 . 6 . Prevented 4 | . . . . . . . . . . . . . . . . . . . . . 4 . Parts Restored . | . . . . . . . . . . . . . . . . . . . . . . . Kills | -11 -10 -10 -9 -9 -8 -8 -7 -7 -7 -7 -6 -6 -6 -6 -6 -6 -5 -5 -5 -5 -4 -4 ------- Run | Yrd Mat Min Mat Min Mat Sto Fac Low Low Zio Pro Fac Ext Cet Arc Hub Fac Upp Upp War Pro Fac Combat Hostiles Destroyed 158 | . 5 17 19 2 15 23 . 4 1 . 3 . 12 4 1 1 8 3 1 12 6 21 Melee 4 | . . . . . . . . . . . . . 3 . . . . . . . 1 . Guns 81 | . 5 5 18 2 15 4 . . 1 . . . 2 . 1 . 8 . 1 12 . 7 Cannons 17 | . . . . . . 15 . . . . . . 2 . . . . . . . . . AOE 44 | . . 12 1 . . 2 . 4 . . 3 . . 1 . . . 2 . . 5 14 Classes Destroyed 25 | 2 6 3 2 . 1 2 . 1 . . . . 2 . . . 2 . 1 2 1 . Worker 14 | . 1 . 2 . 3 1 . . . . . . . . . 5 1 . . . . 1 Builder 5 | . . . . . . . . . . . . . 1 . . 2 . . . . . 2 Tunneler 7 | 3 . 2 . . . . . . . . . . . . . 1 . . . . . 1 Hauler 18 | . 2 . 5 . 6 4 . . . . . . . . . 1 . . . . . . Recycler 10 | 1 . 1 . . . 3 . . . . . . . . . 1 1 . . . . 3 Mechanic 1 | . . . 1 . . . . . . . . . . . . . . . . . . . Operator 13 | . 1 . 2 . . 1 . . . . . . . . 9 . . . . . . . Drone 2 | . . . . . . . . . . . . . . . . . . . . . 2 . Watcher 15 | . 1 . 1 . . 2 1 . . . . 1 1 2 . 1 . . . . . 5 Swarmer 43 | . . 3 8 1 . . . 4 . . 3 . . . . . 3 2 . . 4 15 Grunt 49 | . 4 . 5 1 11 14 . . . . . . 7 . . . 2 . . 5 . . Brawler 2 | . . . . . . . . . . . . . . . . . 1 . . 1 . . Duelist 4 | . . . . . 1 1 . . 1 . . . . . . . . . . 1 . . Protector 2 | . . . . . . 1 . . . . . . . . . . . . . 1 . . Researcher 1 | . . . . . . . . . . . . . . . . . . . 1 . . . Sentry 22 | . . . 6 . 3 7 . . . . . . 3 . 1 . 1 . 1 . . . Demolisher 4 | . . 1 . . . 1 . . . . . . . . . . . . . 2 . . Hunter 1 | . . . . . . 1 . . . . . . . . . . . . . . . . Programmer 7 | . . . . . . . . . . . . . . . . . 1 . . . . 6 Behemoth 4 | . . . . . . . . . . . . . 2 . . 1 . 1 . . . . Cetus Guard 4 | . . . . . . . . . . . . . . 4 . . . . . . . . Enhanced Grunt 2 | . . . . . . . . . . . . . . . . 2 . . . . . . Striker 1 | . . . . . . . . . . . . . . . . . . . . 1 . . Executioner 1 | . . . . . . . . . . . . . . . . . . . . 1 . . Subdweller 1 | . 1 . . . . . . . . . . . . . . . . . . . . . Decomposer 1 | . . . . . . . . . . . . . . . . . . . 1 . . . Tinkerer 2 | . . . . . . . . 1 . . 1 . . . . . . . . . . . Assembled 13 | . . 13 . . . . . . . . . . . . . . . . . . . . Thug 1 | . . . . . . . . . . . . . . . . 1 . . . . . . Guerrilla 1 | . . . . . . . . . . . . . . . . 1 . . . . . . Best Kill Streak 10 | 4 2 5 4 1 5 8 1 4 1 . 3 1 3 5 5 10 7 2 1 3 4 10 Combat Bots Only 10 | . 1 5 4 1 4 7 . 4 1 . 3 . 3 4 1 1 7 2 1 3 4 10 Max Kills in Single Turn 11 | 1 1 3 2 1 1 2 1 2 1 . 2 1 1 2 1 11 2 2 1 1 3 6 Gunslinging . | . . . . . . . . . . . . . . . . . . . . . . . Exploded 6 | . . 2 1 . . 1 . 2 . . 2 . . 1 . . . 2 . . 3 6 Melee 1 | . . . . . . . . . . . . . 1 . . . . . . . 1 . Uniques/NPCs Destroyed . | . . . . . . . . . . . . . . . . . . . . . . . Combat | -11 -10 -10 -9 -9 -8 -8 -7 -7 -7 -7 -6 -6 -6 -6 -6 -6 -5 -5 -5 -5 -4 -4 -------- Run | Yrd Mat Min Mat Min Mat Sto Fac Low Low Zio Pro Fac Ext Cet Arc Hub Fac Upp Upp War Pro Fac Hostile Shots Fired 941 | . 19 33 76 3 96 88 15 11 9 . 4 9 122 3 6 10 78 15 6 55 20 263 Missed 308 | . 4 5 18 3 19 16 9 4 6 . 1 4 42 . 2 4 15 9 1 32 11 103 Hits 633 | . 15 28 58 . 77 72 6 7 3 . 3 5 80 3 4 6 63 6 5 23 9 160 Melee 26 | . . 4 . . . 8 . . . . . . . . . . . . . . . 14 Projectile 607 | . 15 24 58 . 77 64 6 7 3 . 3 5 80 3 4 6 63 6 5 23 9 146 AOE 9 | . . 2 . . . 5 . . . . . . . . . . . . . . . 2 Critical Strikes 27 | . . . 2 . 1 5 . . . . . . . . 1 1 2 . . . 1 14 Actively Blocked 2 | . . . . . . . . . . . . . . . . . . . . . . 2 Part Disruptions 4 | . . 1 . . . . . . . . . . . . . . . . . . . 3 Damage Taken 11441 | . 252 551 645 15 1201 1596 70 163 47 . 48 39 1063 64 86 205 1251 127 109 316 143 3450 Core 2429 | . 87 121 84 . 163 131 32 74 . . . 11 254 12 . 19 208 29 . 7 37 1160 Absorbed by Shields 160 | . . . . . . . . . . . . . 47 36 . . . . . . . 77 Redirected to Shielding 267 | . . . . . . . . . . . . . . . . . . . . . . 267 Ignored by Resistances 133 | . . . . . . . . . . . . . . . . . . . . . 35 98 Regen/Repaired (Parts) 583 | . . . . . 86 47 . . . . . . . . . . 397 . . 53 . . Core Remaining (%) 65 | 100 . 16 . 79 . 46 . . . . 84 . . . . 65 . . . . 71 . Volleys Fired 941 | 6 46 37 87 6 96 123 50 41 42 . 28 18 37 5 41 21 37 23 58 46 29 64 Largest 3 | 2 2 2 2 2 2 2 1 2 2 . 1 1 2 1 2 2 2 1 2 2 2 3 Hottest 120 | 60 60 40 53 46 88 73 65 65 90 . 65 65 96 . 70 120 85 85 120 85 70 105 Shots Fired 1520 | 12 91 54 174 12 189 216 50 43 53 . 28 18 62 5 76 26 58 24 80 90 52 107 Gun 1060 | 12 91 31 172 12 184 107 . 4 21 . . . 15 . 76 8 46 . 58 89 46 88 Cannon 390 | . . . . . 2 98 50 34 32 . 26 18 42 . . 18 12 22 22 1 . 13 Launcher 70 | . . 23 2 . 3 11 . 5 . . 2 . 5 5 . . . 2 . . 6 6 Special . | . . . . . . . . . . . . . . . . . . . . . . . Kinetic 1140 | 6 85 31 172 12 150 205 4 4 21 . . . 40 . 76 8 46 . 58 88 46 88 Thermal 309 | 6 6 . . . 36 . 46 34 32 . 26 18 17 . . 18 12 22 22 1 . 13 Explosive 48 | . . 23 2 . 3 . . 5 . . 2 . . . . . . 2 . . 6 5 Electromagnetic 22 | . . . . . . 11 . . . . . . 5 5 . . . . . . . 1 Entropic 1 | . . . . . . . . . . . . . . . . . . . . 1 . . Robot Hit Streak 17 | 7 4 6 12 6 9 16 9 1 4 . . 1 8 4 10 3 9 1 13 17 1 11 Robot Miss Streak 8 | 1 3 6 5 3 4 6 2 2 8 . . 2 4 . 5 1 6 1 2 7 2 4 Penetration Max 1 | . . . . . . 1 . . . . . . 1 . . 1 1 . . 1 . 1 Secondary Targets 8 | . . 1 2 . 1 . . . . . . . . . . . 3 . . . . 1 Max Gunslinging Chain 1 | . . 1 1 . 1 . . . . . . . . . . . 1 . . . . 1 Shots Hit Robots 733 | 9 44 24 120 7 138 126 2 2 9 . 5 2 42 3 41 4 31 2 15 51 4 52 Core Hits 459 | 5 17 28 45 5 79 53 1 7 4 . 7 1 26 21 22 26 13 2 5 32 5 55 Critical Kills 39 | . . . . . 1 19 . . . . . . . . 4 1 4 . . 7 . 3 Critical Parts Destroyed 42 | 1 . . 1 . . 16 . . . . . . 5 . 3 . 6 . . 8 . 2 Critical Strikes 91 | 1 . . 1 . 1 38 . . . . 1 . 6 . 9 1 11 . . 16 1 5 Destroy 87 | 1 . . 1 . 1 38 . . . . . . 5 . 9 1 10 . . 16 . 5 Impale 4 | . . . . . . . . . . . 1 . 1 . . . 1 . . . 1 . Melee Attacks 148 | . . . 2 . . . . . . . 13 18 19 . . 8 22 5 7 7 4 43 Impact . | . . . . . . . . . . . . . . . . . . . . . . . Slashing 2 | . . . 2 . . . . . . . . . . . . . . . . . . . Piercing 146 | . . . . . . . . . . . 13 18 19 . . 8 22 5 7 7 4 43 Sneak Attacks 10 | . . . . . . . . . . . 2 . . . . . 4 . 1 . 1 2 Combat Hostiles 1 | . . . . . . . . . . . . . . . . . . . . . 1 . Follow-up Attacks . | . . . . . . . . . . . . . . . . . . . . . . . Damage Inflicted 22941 | 102 505 941 1975 132 2013 3032 54 308 153 . 602 83 1580 949 1257 1366 1089 185 414 2287 578 3336 Guns 12522 | 102 505 206 1866 132 1985 1220 . 35 153 . . . 163 . 1257 108 748 . 292 2287 . 1463 Cannons 2180 | . . . . . . 1232 54 . . . . 83 676 . . 63 . . . . . 72 Explosions 6655 | . . 735 109 . 28 580 . 273 . . 254 . 426 949 . 1195 . 185 . . 440 1481 Melee 1517 | . . . . . . . . . . . 348 . 315 . . . 341 . 122 . 138 253 Ramming 67 | . . . . . . . . . . . . . . . . . . . . . . 67 Kinetic 13486 | 35 483 206 1866 132 1496 2452 . 35 153 . . . 473 . 1257 108 748 . 292 2287 . 1463 Thermal 1425 | 67 22 . . . 489 . 54 . . . . 83 366 209 . 63 . . . . . 72 Explosive 3401 | . . 735 109 . 28 . . 273 . . 254 . . . . . . 185 . . 440 1377 Electromagnetic 3045 | . . . . . . 580 . . . . . . 426 740 . 1195 . . . . . 104 Impact . | . . . . . . . . . . . . . . . . . . . . . . . Slashing . | . . . . . . . . . . . . . . . . . . . . . . . Piercing 1517 | . . . . . . . . . . . 348 . 315 . . . 341 . 122 . 138 253 Highest Corruption 29 | . 4 4 . . 7 9 . . . . . . . 20 20 29 1 1 . . . 6 Average Corruption 5 | . 3 4 . . 6 8 . . . . . . . 19 14 8 1 1 . . . 2 Corruption Purged 14 | . . . . . . . . . . . . . . . 12 . 1 1 . . . . Corruption Blocked . | . . . . . . . . . . . . . . . . . . . . . . . Effects 245 | . 22 33 . . 47 70 . . . . . . . 11 24 14 8 2 . . . 14 Message Errors 52 | . 4 8 . . 11 18 . . . . . . . 2 2 3 1 . . . . 3 Matter Fused 64 | . 5 10 . . 7 16 . . . . . . . 6 9 5 4 . . . . 2 Heat Flow Errors 28 | . 3 3 . . 8 5 . . . . . . . 2 2 2 2 . . . . 1 Energy Discharges 30 | . 2 2 . . 7 11 . . . . . . . 1 3 1 . 1 . . . 2 Parts Rejected 4 | . . . . . 2 . . . . . . . . . 1 . . . . . . 1 Parts Fused 2 | . . . . . . 1 . . . . . . . . . . 1 . . . . . Data Loss (minor) 23 | . 3 5 . . 5 6 . . . . . . . . . 2 . . . . . 2 Data Loss (major) 12 | . 3 3 . . 2 2 . . . . . . . . 1 1 . . . . . . Misfires 13 | . . 2 . . 3 6 . . . . . . . . 1 . . 1 . . . . Alerts 5 | . 1 . . . 1 1 . . . . . . . . . . . . . . . 2 Weapon Failures 12 | . 1 . . . 1 4 . . . . . . . . 5 . . . . . . 1 Overload Shots . | . . . . . . . . . . . . . . . . . . . . . . . Overflow Damage 637 | . . 50 12 . . 7 . . . . 79 . 5 12 . 69 147 35 . . 118 103 Projectiles 5 | . . . . . . . . . . . . . 5 . . . . . . . . . Explosions 287 | . . 50 12 . . 7 . . . . . . . 12 . 69 . 35 . . 55 47 Melee 345 | . . . . . . . . . . . 79 . . . . . 147 . . . 63 56 Knockbacks 10 | . . . . . . 8 . . . . . . 1 . . . . . . . . 1 Impact 1 | . . . . . . . . . . . . . . . . . . . . . . 1 Kinetic 8 | . . . . . . 7 . . . . . . 1 . . . . . . . . . Secondary 1 | . . . . . . 1 . . . . . . . . . . . . . . . . Self-Inflicted Damage 529 | . . 111 32 . . 29 . 57 . . . . . . . 92 . 21 . . 42 145 Shots 13 | . . 4 1 . . 2 . 1 . . . . . . . 1 . 1 . . 1 2 Rammed 2 | . . . . . . . . . . . . . . . . . . . . . . 2 Targets Rammed 2 | . . . . . . . . . . . . . . . . . . . . . . 2 Kicked . | . . . . . . . . . . . . . . . . . . . . . . . Crushed . | . . . . . . . . . . . . . . . . . . . . . . . Highest Temperature 329 | . 188 257 3 . 237 329 232 150 180 . 212 126 228 161 220 221 245 196 200 36 18 232 Average Temperature 64 | . 93 92 3 . 69 91 84 63 52 . 71 42 60 73 82 70 22 51 68 13 10 49 Received Heat Transfer 2678 | . 120 120 195 9 603 405 33 . 27 . . 12 312 . . 72 288 . . . 9 473 Effects 4 | . . 1 . . 2 . . . . . . . . . . . 1 . . . . . Energy Bleed 2 | . . 1 . . . . . . . . . . . . . . 1 . . . . . Interference 2 | . . . . . 2 . . . . . . . . . . . . . . . . . Siege Activations . | . . . . . . . . . . . . . . . . . . . . . . . Martial Activations . | . . . . . . . . . . . . . . . . . . . . . . . Shielding Activations . | . . . . . . . . . . . . . . . . . . . . . . . Robots Disrupted 1 | . . . . . . . . . . . . . . 1 . . . . . . . . Combat Hostiles 1 | . . . . . . . . . . . . . . 1 . . . . . . . . Robots Corrupted 10 | . . . . . . 2 . . . . . . 3 3 . 2 . . . . . . Combat Hostiles 8 | . . . . . . 2 . . . . . . 3 3 . . . . . . . . Parts Fried 11 | . . . . . . 2 . . . . . . 3 1 . 5 . . . . . . Impact Corruptions . | . . . . . . . . . . . . . . . . . . . . . . . Robots Melted . | . . . . . . . . . . . . . . . . . . . . . . . Combat Hostiles . | . . . . . . . . . . . . . . . . . . . . . . . Parts Melted 1 | . 1 . . . . . . . . . . . . . . . . . . . . . Heat Transferred 1808 | 150 50 . . . 605 . 74 . . . . 111 520 150 . 74 . . . . . 74 Parts Sabotaged 5 | . . . . . . . . . . . . . . . . . . . . . . 5 Parts Stolen . | . . . . . . . . . . . . . . . . . . . . . . . Parts Stripped . | . . . . . . . . . . . . . . . . . . . . . . . Power Chain Reactions 3 | . . . . . . . . . . . . . . 2 . 1 . . . . . . Alert | -11 -10 -10 -9 -9 -8 -8 -7 -7 -7 -7 -6 -6 -6 -6 -6 -6 -5 -5 -5 -5 -4 -4 ------- Run | Yrd Mat Min Mat Min Mat Sto Fac Low Low Zio Pro Fac Ext Cet Arc Hub Fac Upp Upp War Pro Fac Maximum Alert Level 4 | . . . 1 . 1 2 1 . . . . . 1 2 1 4 2 . . . . 3 Low Security (%) 63 | 100 100 100 74 100 80 51 97 . . . . 100 76 7 3 25 . . . . . . Level 1 18 | . . . 25 . 19 33 2 . . . . . 23 59 96 22 1 . . . . 21 Level 2 14 | . . . . . . 15 . . . . . . . 32 . 42 98 . . . . 35 Level 3 4 | . . . . . . . . . . . . . . . . 6 . . . . . 43 Level 4 . | . . . . . . . . . . . . . . . . 3 . . . . . . Level 5 . | . . . . . . . . . . . . . . . . . . . . . . . High Security . | . . . . . . . . . . . . . . . . . . . . . . . Max Security . | . . . . . . . . . . . . . . . . . . . . . . . Peak Influence 1438 | 10 68 89 258 65 234 447 200 . . . . 18 245 442 308 1438 682 . . . . 988 Initial 432 | . . 12 . . . 94 200 . . . . . . 119 152 74 432 . . . . 321 Average 200 | 1 11 20 122 8 103 224 69 . . . . 1 141 315 253 439 592 . . . . 627 Influence Increases 11120 | 20 271 273 720 205 676 1149 132 90 165 . 95 64 1136 433 326 1860 713 114 35 390 145 2108 Destroy 0b10 Robot/C 4020 | . 80 80 380 140 360 620 . 80 20 . 60 . 560 160 80 400 160 100 20 220 80 420 Destroy 0b10 Robot/NC 490 | 20 25 15 55 . 50 65 5 . . . 10 5 30 10 45 70 10 . . 5 10 60 Destroy Leader 752 | . 36 20 112 30 104 172 2 10 10 . 10 2 56 . . 78 20 10 . . 10 70 Allied During Kill 1157 | . . . . 20 5 120 . . . . . . 234 166 125 483 . 4 . . . . Successful Hack 455 | . 68 . 76 . 57 42 30 . . . . 20 54 . . 21 30 . . . . 57 Disable Machine 945 | . . 15 30 15 45 30 15 . . . . . 15 . 60 480 15 . . . . 225 Destroy Structure 1006 | . 2 143 22 . 40 40 20 . . . . 22 22 22 16 283 88 . . . . 286 Advance Influence 300 | . . . . . . . . . . . . . . . . . . . . . . 300 Partial Spotted 135 | . . . . . . . 30 . . . . . 45 . . 15 15 . . . . 30 Lose Combat Pursuer 1560 | . 60 . 45 . 15 60 30 . 135 . 15 15 120 75 . 30 375 . 15 165 45 360 Miscellaneous 300 | . . . . . . . . . . . . . . . . . . . . . . 300 Influence Decreases 10214 | 20 240 304 720 205 452 932 565 36 227 . 95 63 923 265 496 1188 984 547 211 232 273 1236 Entered New Map 1764 | . . 19 . . . 130 241 4 13 . . . 1 95 230 138 452 227 35 4 162 13 Time Decay 5850 | 20 240 265 520 185 392 632 324 32 214 . 95 63 522 150 206 170 482 270 176 228 111 553 Search Patrol Dispatched 200 | . . . . . . . . . . . . . . . . . . . . . . 200 Lost Part 380 | . . 20 10 . 40 50 . . . . . . 40 . . 10 50 10 . . . 150 Lost Ally 780 | . . . . 20 20 120 . . . . . . 360 20 60 120 . 40 . . . 20 Purge Threat 1240 | . . . 190 . . . . . . . . . . . . 750 . . . . . 300 Squads Dispatched 39 | . 1 . 2 . . 4 3 . . . . 5 1 . . 3 7 . . . . 13 Investigation 9 | . . . . . . . 1 . . . . 2 . . . . 3 . . . . 3 Extermination 10 | . . . . . . . 2 . . . . 1 . . . 1 2 . . . . 4 Reinforcement 13 | . 1 . 2 . . 2 . . . . . 2 1 . . 2 1 . . . . 2 Assault 7 | . . . . . . 2 . . . . . . . . . . 1 . . . . 4 Garrison . | . . . . . . . . . . . . . . . . . . . . . . . Intercept . | . . . . . . . . . . . . . . . . . . . . . . . Searches Triggered 2 | . . . . . . . . . . . . . . . . . . . . . . 2 Construction Impeded 4 | . . . . . . 1 . . . . . . 1 . . 1 . . . . . 1 Haulers Reinforced . | . . . . . . . . . . . . . . . . . . . . . . . Active Scanning Responses . | . . . . . . . . . . . . . . . . . . . . . . . Cargo Convoy Interrupts . | . . . . . . . . . . . . . . . . . . . . . . . Stealth | -11 -10 -10 -9 -9 -8 -8 -7 -7 -7 -7 -6 -6 -6 -6 -6 -6 -5 -5 -5 -5 -4 -4 --------- Run | Yrd Mat Min Mat Min Mat Sto Fac Low Low Zio Pro Fac Ext Cet Arc Hub Fac Upp Upp War Pro Fac Distress Signals 23 | . 1 . 5 . 3 6 . . . . . . 1 2 . 3 1 . . 1 . . Communications Jammed . | . . . . . . . . . . . . . . . . . . . . . . . Distress Signals . | . . . . . . . . . . . . . . . . . . . . . . . Times Spotted 462 | . 18 15 38 6 33 40 5 4 10 . 4 5 35 9 16 17 39 10 2 65 9 82 Peak Tracking Total 17 | . 4 4 5 3 7 10 2 4 6 . 3 2 4 5 1 6 11 9 1 11 4 17 Tactical Retreats 64 | . 3 2 3 . 1 3 2 . 4 . 1 1 6 3 . 1 10 . 1 9 1 13 Traps | -11 -10 -10 -9 -9 -8 -8 -7 -7 -7 -7 -6 -6 -6 -6 -6 -6 -5 -5 -5 -5 -4 -4 ------- Run | Yrd Mat Min Mat Min Mat Sto Fac Low Low Zio Pro Fac Ext Cet Arc Hub Fac Upp Upp War Pro Fac Traps Triggered 21 | . 3 . . . 2 5 . . . . . . 3 . . 1 6 . . . . 1 Indirectly 1 | . . . . . . . . . . . . . 1 . . . . . . . . . Trap Hack Attempts . | . . . . . . . . . . . . . . . . . . . . . . . Triggered . | . . . . . . . . . . . . . . . . . . . . . . . Disarmed . | . . . . . . . . . . . . . . . . . . . . . . . Reprogrammed . | . . . . . . . . . . . . . . . . . . . . . . . Reused . | . . . . . . . . . . . . . . . . . . . . . . . Traps Extracted . | . . . . . . . . . . . . . . . . . . . . . . . Installed . | . . . . . . . . . . . . . . . . . . . . . . . Triggered . | . . . . . . . . . . . . . . . . . . . . . . . Machines | -11 -10 -10 -9 -9 -8 -8 -7 -7 -7 -7 -6 -6 -6 -6 -6 -6 -5 -5 -5 -5 -4 -4 ---------- Run | Yrd Mat Min Mat Min Mat Sto Fac Low Low Zio Pro Fac Ext Cet Arc Hub Fac Upp Upp War Pro Fac Machines Disabled 65 | . . 1 2 1 3 2 1 . . . . . 1 1 4 32 1 . . 1 . 15 Max in Single Turn 27 | . . 1 1 . 1 1 1 . . . . . 1 1 1 27 1 . . 1 . 4 Garrison Access 4 | . . . . . . . . . . . . . . . . . 2 . . . . 2 Network Hub 2 | . . . . . . . . . . . . . . . . 2 . . . . . . Machines Repaired . | . . . . . . . . . . . . . . . . . . . . . . . Machines Dismantled . | . . . . . . . . . . . . . . . . . . . . . . . Machines Sabotaged . | . . . . . . . . . . . . . . . . . . . . . . . Overloaded Fab Kills . | . . . . . . . . . . . . . . . . . . . . . . . Hacking | -11 -10 -10 -9 -9 -8 -8 -7 -7 -7 -7 -6 -6 -6 -6 -6 -6 -5 -5 -5 -5 -4 -4 --------- Run | Yrd Mat Min Mat Min Mat Sto Fac Low Low Zio Pro Fac Ext Cet Arc Hub Fac Upp Upp War Pro Fac Machines Accessed 118 | . 8 . 10 1 15 11 10 . 2 . . 7 13 . . 7 12 . 1 4 1 16 Terminals 80 | . 7 . 9 1 10 10 5 . 1 . . 3 13 . . 6 4 . . . 1 10 Fabricators 12 | . . . . . . . 3 . . . . 3 . . . . 3 . . . . 3 Repair Stations 4 | . . . . . 2 1 . . . . . . . . . . 1 . . . . . Recycling Units 3 | . 1 . . . 1 . . . . . . . . . . . 1 . . . . . Scanalyzers 7 | . . . 1 . 2 . 1 . . . . 1 . . . . 1 . . . . 1 Garrison Access 6 | . . . . . . . 1 . . . . . . . . 1 2 . . . . 2 Total Hacks 340 | . 29 . 39 4 34 29 30 . 2 . . 14 21 . . 26 47 . 1 8 1 55 Successful 226 | . 19 . 24 1 22 16 10 . 2 . . 10 16 . . 16 36 . 1 8 1 44 Failed 112 | . 10 . 14 3 12 13 20 . . . . 3 5 . . 10 11 . . . . 11 Catastrophic 20 | . . . 4 1 5 . 6 . . . . . 1 . . 1 . . . . . 2 Database Lockouts 2 | . . . 1 . . . . . . . . 1 . . . . . . . . . . Manual 206 | . 27 . 32 5 23 15 9 . . 1 . 8 9 1 . 19 18 . . . . 39 Terminals 242 | . 28 . 37 4 22 26 20 . 1 . . 7 21 . . 24 16 . . . 1 35 Fabricators 42 | . . . . . . . 7 . . . . 5 . . . . 13 . . . . 17 Repair Stations 20 | . . . . . 6 3 . . . . . . . . . . 11 . . . . . Recycling Units 3 | . 1 . . . 1 . . . . . . . . . . . 1 . . . . . Scanalyzers 16 | . . . 2 . 5 . 2 . . . . 2 . . . . 4 . . . . 1 Garrison Access 7 | . . . . . . . 1 . . . . . . . . 2 2 . . . . 2 Terminal Hacks 99 | . 8 . 9 1 2 7 5 . 2 . . 3 12 . . 13 8 . 1 8 1 19 Record 9 | . . . . . . . . . 1 . . . . . . . . . . 7 1 . Part Schematic 15 | . 2 . . . . . 1 . . . . . 3 . . . 2 . . . . 7 Robot Analysis 5 | . 3 . . 1 . . . . . . . 1 . . . . . . . . . . Prototype ID Bank 8 | . 2 . 5 . . 1 . . . . . . . . . . . . . . . . Open Door 14 | . . . . . . 3 . . 1 . . . 8 . . . . . 1 1 . . Level Access Points 1 | . . . . . . . . . . . . . . . . 1 . . . . . . Branch Access Points 3 | . . . . . . . . . . . . 1 . . . . 1 . . . . 1 Terminal Index 7 | . 1 . 1 . 1 1 . . . . . 1 . . . 1 1 . . . . . Scanalyzer Index 1 | . . . . . 1 . . . . . . . . . . . . . . . . . Alert Level 3 | . . . . . . 1 1 . . . . . . . . . . . . . . 1 Unreport Threat 12 | . . . 2 . . . . . . . . . . . . 5 . . . . . 5 Locate Traps 4 | . . . . . . . 1 . . . . . 1 . . 1 . . . . . 1 Recall Investigation 1 | . . . . . . . . . . . . . . . . . . . . . . 1 Recall Extermination 3 | . . . . . . . . . . . . . . . . . 2 . . . . 1 Recall Reinforcements 1 | . . . . . . . . . . . . . . . . 1 . . . . . . Recall Assault 1 | . . . . . . . . . . . . . . . . . . . . . . 1 Registered Components 1 | . . . . . . . . . . . . . . . . . 1 . . . . . Zone Layout 10 | . . . 1 . . 1 2 . . . . . . . . 4 1 . . . . 1 Fabricator Hacks 25 | . . . . . . . 3 . . . . 2 . . . . 8 . . . . 12 Network Status 3 | . . . . . . . 1 . . . . 1 . . . . 1 . . . . . Load Schematic 14 | . . . . . . . 1 . . . . 1 . . . . 5 . . . . 7 Build 8 | . . . . . . . 1 . . . . . . . . . 2 . . . . 5 Repair Station Hacks 16 | . . . . . 6 2 . . . . . . . . . . 8 . . . . . Scan Component 9 | . . . . . 3 1 . . . . . . . . . . 5 . . . . . Repair 7 | . . . . . 3 1 . . . . . . . . . . 3 . . . . . Recycling Unit Hacks 2 | . 1 . . . . . . . . . . . . . . . 1 . . . . . Retrieve Components 2 | . 1 . . . . . . . . . . . . . . . 1 . . . . . Scanalyzer 13 | . . . 2 . 5 . . . . . . 1 . . . . 4 . . . . 1 Insert Component 2 | . . . 1 . . . . . . . . . . . . . . . . . . 1 Analyze 1 | . . . 1 . . . . . . . . . . . . . . . . . . . Retrieve Study 10 | . . . . . 5 . . . . . . 1 . . . . 4 . . . . . Garrison Access Hacks 4 | . . . . . . . . . . . . . . . . . 2 . . . . 2 Seal Access 4 | . . . . . . . . . . . . . . . . . 2 . . . . 2 Unauthorized Hacks 67 | . 10 . 13 . 9 7 2 . . . . 4 4 . . 3 5 . . . . 10 Terminals 56 | . 10 . 13 . 9 7 2 . . . . 2 4 . . 3 1 . . . . 5 Assimilate 2 | . . . . . . . . . . . . . . . . . . . . . . 2 Botnet 19 | . 3 . 3 . 2 2 2 . . . . 2 . . . 2 1 . . . . 2 Disrupt 10 | . 1 . 3 . . . . . . . . . 4 . . 1 . . . . . 1 Operators 5 | . 1 . 2 . 2 . . . . . . . . . . . . . . . . . Skim 20 | . 5 . 5 . 5 5 . . . . . . . . . . . . . . . . Fabricators 11 | . . . . . . . . . . . . 2 . . . . 4 . . . . 5 Prioritize 4 | . . . . . . . . . . . . . . . . . 1 . . . . 3 Recompile 7 | . . . . . . . . . . . . 2 . . . . 3 . . . . 2 Repair Stations . | . . . . . . . . . . . . . . . . . . . . . . . Recycling Units . | . . . . . . . . . . . . . . . . . . . . . . . Scanalyzers . | . . . . . . . . . . . . . . . . . . . . . . . Garrison Access . | . . . . . . . . . . . . . . . . . . . . . . . Data Cores Recovered 1 | . . . . . . . . . . . . . . . . 1 . . . . . . Used . | . . . . . . . . . . . . . . . . . . . . . . . Hacking Detections 66 | . 7 . 9 1 13 6 10 . . . . 5 3 . . 3 2 . . . . 7 Full Trace Events 2 | . . . . . . . 1 . . . . . . . . . . . . . . 1 Feedback Events . | . . . . . . . . . . . . . . . . . . . . . . . Feedback Blocked . | . . . . . . . . . . . . . . . . . . . . . . . Robot Schematics Acquired . | . . . . . . . . . . . . . . . . . . . . . . . Robots Built . | . . . . . . . . . . . . . . . . . . . . . . . Authchips . | . . . . . . . . . . . . . . . . . . . . . . . Time . | . . . . . . . . . . . . . . . . . . . . . . . Total Robot Build Rating . | . . . . . . . . . . . . . . . . . . . . . . . Part Schematics Acquired 15 | . 2 . 1 . . . 1 . . . . . 3 . . . 2 . . . . 6 Parts Built 10 | . . . . . . . 2 . . . . . . . . . 3 . . . . 5 Authchips 6 | . . . . . . . . . . . . . . . . . 2 . . . . 4 Time 449 | . . . . . . . 47 . . . . . . . . . 131 . . . . 271 Total Part Build Rating 58 | . . . . . . . 10 . . . . . . . . . 16 . . . . 32 Part Studies Acquired 10 | . . . . . 5 . . . . . . 1 . . . . 4 . . . . . Parts Repaired 7 | . . . . . 3 1 . . . . . . . . . . 3 . . . . . Time 294 | . . . . . 132 50 . . . . . . . . . . 112 . . . . . Parts Recycled . | . . . . . . . . . . . . . . . . . . . . . . . Recycled Matter . | . . . . . . . . . . . . . . . . . . . . . . . Retrieved Matter . | . . . . . . . . . . . . . . . . . . . . . . . Retrieved Components 12 | . 9 . . . . . . . . . . . . . . . 3 . . . . . Parts Scanalyzed 1 | . . . 1 . . . . . . . . . . . . . . . . . . . Part Schematics Acquired 1 | . . . 1 . . . . . . . . . . . . . . . . . . . Parts Damaged . | . . . . . . . . . . . . . . . . . . . . . . . Bothacking | -11 -10 -10 -9 -9 -8 -8 -7 -7 -7 -7 -6 -6 -6 -6 -6 -6 -5 -5 -5 -5 -4 -4 ------------ Run | Yrd Mat Min Mat Min Mat Sto Fac Low Low Zio Pro Fac Ext Cet Arc Hub Fac Upp Upp War Pro Fac Used RIF Installer . | . . . . . . . . . . . . . . . . . . . . . . . Robots Hacked . | . . . . . . . . . . . . . . . . . . . . . . . Non-combat . | . . . . . . . . . . . . . . . . . . . . . . . Combat . | . . . . . . . . . . . . . . . . . . . . . . . Robot Hacks Applied . | . . . . . . . . . . . . . . . . . . . . . . . Relay Couplers Released 2 | . . . . . . . . . . . . . . . . . . . . . . 2 Machine Destruction 2 | . . . . . . . . . . . . . . . . . . . . . . 2 Fabnet Peak Effective % . | . . . . . . . . . . . . . . . . . . . . . . . Robots Rewired 24 | . . . . . . . . . . . . . 17 . . . . 2 . 5 . . Allies Hacked . | . . . . . . . . . . . . . . . . . . . . . . . Hacks Repelled . | . . . . . . . . . . . . . . . . . . . . . . . Allies | -11 -10 -10 -9 -9 -8 -8 -7 -7 -7 -7 -6 -6 -6 -6 -6 -6 -5 -5 -5 -5 -4 -4 -------- Run | Yrd Mat Min Mat Min Mat Sto Fac Low Low Zio Pro Fac Ext Cet Arc Hub Fac Upp Upp War Pro Fac Total Allies 58 | . . . . 3 . 12 . . . . . . 29 5 . . . 2 . 5 . 2 Largest Group 15 | . . . . 3 2 10 . . . . . . 13 15 15 11 . 2 . 5 . 2 Highest-Rated Group 908 | . . . . 40 24 173 . . . . . . 448 908 908 651 . 78 . 226 . 90 Highest-Rated Ally 159 | . . . . 16 16 31 . . . . . . 159 159 159 96 . 49 . 49 . 45 Total Orders 24 | . . . . . . . . . . . . . 9 7 6 1 . . . 1 . . STAY 15 | . . . . . . . . . . . . . 6 4 3 1 . . . 1 . . ROAM 1 | . . . . . . . . . . . . . . . 1 . . . . . . . FOLLOW 8 | . . . . . . . . . . . . . 3 3 2 . . . . . . . Ally Attacks 398 | . . . . 13 25 64 . . . . . . 134 21 33 100 . 8 . . . . Total Damage 8310 | . . . . 126 206 895 . . . . . . 2620 410 556 3219 . 278 . . . . Kills 69 | . . . . 5 4 9 . . . . . . 20 4 3 22 . 2 . . . . Allies Corrupted 5 | . . . . . . . . . . . . . . . . 5 . . . . . . Allies Melted 4 | . . . . . . . . . . . . . 1 . . . . . . 3 . . Intel | -11 -10 -10 -9 -9 -8 -8 -7 -7 -7 -7 -6 -6 -6 -6 -6 -6 -5 -5 -5 -5 -4 -4 ------- Run | Yrd Mat Min Mat Min Mat Sto Fac Low Low Zio Pro Fac Ext Cet Arc Hub Fac Upp Upp War Pro Fac Active Infowar (turns) 21417 | 14 1252 611 1747 1524 1784 2214 764 826 672 315 810 357 1544 309 439 359 1241 590 720 1120 604 1601 Optics 11459 | . . . . . . 680 764 826 672 315 810 357 1544 309 439 359 1241 590 720 350 . 1483 Sensors 10639 | . . . . . . . 754 815 672 314 808 357 1288 . 71 334 1110 506 702 903 604 1401 Seismic 8466 | 14 1252 611 1747 1524 1784 1534 . . . . . . . . . . . . . . . . Robot Analysis Total 5 | . 3 . . 1 . . . . . . . 1 . . . . . . . . . . Derelict Logs Recovered 12 | . . 1 . 2 . . . 2 1 1 1 . . . . . . 1 1 . 2 . Drone Launches . | . . . . . . . . . . . . . . . . . . . . . . . Drone Recoveries . | . . . . . . . . . . . . . . . . . . . . . . . Exploration | -11 -10 -10 -9 -9 -8 -8 -7 -7 -7 -7 -6 -6 -6 -6 -6 -6 -5 -5 -5 -5 -4 -4 ------------- Run | Yrd Mat Min Mat Min Mat Sto Fac Low Low Zio Pro Fac Ext Cet Arc Hub Fac Upp Upp War Pro Fac Turns Passed 22541 | 92 1356 1077 1764 1524 2195 2215 764 826 672 315 810 357 1544 309 439 359 1241 590 720 1142 618 1612 Spaces Moved 20374 | 60 827 689 908 687 1098 981 1140 1017 1031 806 1173 565 1398 349 275 287 1444 877 809 1166 839 1948 Core 3 | 1 . . . . . . . . . . . . . . . . . . . . . 2 Treads 224 | . . 1 . . . 223 . . . . . . . . . . . . . . . . Legs . | . . . . . . . . . . . . . . . . . . . . . . . Wheels 5025 | 59 827 688 908 687 1098 758 . . . . . . . . . . . . . . . . Hover 15122 | . . . . . . . 1140 1017 1031 806 1173 565 1398 349 275 287 1444 877 809 1166 839 1946 Flight . | . . . . . . . . . . . . . . . . . . . . . . . Fastest Speed 34 | 50 95 110 120 210 135 150 36 36 36 36 36 36 42 53 53 53 40 40 46 44 45 34 Average Speed 70 | 91 104 116 142 210 147 173 36 36 36 36 36 40 47 53 53 53 52 45 46 47 45 47 Slowest Speed 800 | 95 115 240 210 210 150 545 156 36 36 94 94 42 107 53 53 53 126 115 52 52 45 800 Overloaded Moves 8 | . . . . . . . . . . . . . . . . . . . . . . 8 Propulsion Burnouts . | . . . . . . . . . . . . . . . . . . . . . . . Robots Hopped . | . . . . . . . . . . . . . . . . . . . . . . . Potential Cave-ins 2 | . . . . . . . . . . . . . . . . . 2 . . . . . Cave-ins Triggered . | . . . . . . . . . . . . . . . . . . . . . . . Exploration Rate (%) 71 | 4 98 83 68 98 78 95 36 94 92 85 94 17 86 59 99 39 39 96 72 89 71 51 Regions Visited 22 Branch Regions 15 Pre-discovered Areas 8 | . . . . 1 1 . . . 1 4 . . . . . . . . 1 . . . Known Exits Taken 20 | . . 1 1 1 1 1 1 1 1 1 1 1 1 1 1 1 1 1 1 1 1 . Unknown Exits Taken 2 | 1 1 . . . . . . . . . . . . . . . . . . . . . Scrap Searched 26 | . . 1 . 2 . . . 4 4 3 5 . . . . . . 2 1 . 4 . Spaces Dug 261 | . . . 20 . . . 14 17 7 . 8 17 5 . . 12 21 15 38 6 41 40 Terrain Destroyed 1381 | . . 193 20 . 36 39 22 61 16 . 20 22 15 26 23 344 53 42 73 15 170 191 Melee 94 | . . . 1 . . . . . . . 8 17 2 . . 6 13 4 6 6 1 30 Projectile 400 | . . . . . 2 39 22 18 16 . 9 5 13 . 23 20 40 21 67 9 55 41 AOE 887 | . . 193 19 . 34 . . 43 . . 3 . . 26 . 318 . 17 . . 114 120 Terrain Rammed . | . . . . . . . . . . . . . . . . . . . . . . . Walls Destroyed . | . . . . . . . . . . . . . . . . . . . . . . . Machines Disabled . | . . . . . . . . . . . . . . . . . . . . . . . Actions | -11 -10 -10 -9 -9 -8 -8 -7 -7 -7 -7 -6 -6 -6 -6 -6 -6 -5 -5 -5 -5 -4 -4 --------- Run | Yrd Mat Min Mat Min Mat Sto Fac Low Low Zio Pro Fac Ext Cet Arc Hub Fac Upp Upp War Pro Fac Total 26809 | 81 1233 914 1216 759 1503 1324 1440 1430 1286 834 1502 643 2187 468 493 449 1825 1039 1057 1649 1016 2461 Wait 4299 | 3 325 156 141 55 197 137 209 359 204 13 278 25 555 91 147 105 243 91 173 371 137 284 Move 20352 | 59 826 688 907 686 1097 980 1139 1016 1030 805 1172 564 1397 348 274 286 1443 876 808 1165 838 1948 Hop . | . . . . . . . . . . . . . . . . . . . . . . . Pick Up 209 | 6 17 7 24 4 30 15 3 2 1 4 1 5 15 5 5 . 20 6 1 11 1 26 Fast Attach 56 | 7 1 . 2 . 4 8 1 . . 2 . . 3 4 1 . 11 2 1 1 . 8 Attach 60 | . 1 1 4 . 5 2 5 . . . . 2 7 2 2 1 9 1 2 1 . 15 Detach 19 | . . . . . . 1 . . . . . . 4 2 1 . 4 . . 1 . 6 Swap 342 | . 6 13 22 3 37 26 20 10 6 4 8 5 36 4 11 14 26 11 7 21 6 46 Drop 239 | . 11 12 27 5 37 22 13 2 3 6 2 6 22 7 11 1 10 8 . 14 1 19 Fire 941 | 6 46 37 87 6 96 123 50 41 42 . 28 18 37 5 41 21 37 23 58 46 29 64 Melee 148 | . . . 2 . . . . . . . 13 18 19 . . 8 22 5 7 7 4 43 Ram 2 | . . . . . . . . . . . . . . . . . . . . . . 2 Kick . | . . . . . . . . . . . . . . . . . . . . . . . Crush . | . . . . . . . . . . . . . . . . . . . . . . . Escape Stasis 52 | . . . . . . 8 . . . . . . 31 . . 13 . . . . . . Rewire 90 | . . . . . . 2 . . . . . . 61 . . . . 16 . 11 . . Trap . | . . . . . . . . . . . . . . . . . . . . . . . Miscellaneous . | . . . . . . . . . . . . . . . . . . . . . . . Route ------- -11/Scrapyard -10/Materials (discovered 6 exits: *Mat x3 / [*Min x2] / *Sub) -10/Mines (discovered 4 exits: *Mat x2 / [*Exi] / *Sub) -9/Materials (discovered 4 exits: *Mat x2 / *Min x2) -9/Mines (discovered 3 exits: *Mat x2 / *Zio) -8/Materials (discovered 5 exits: *Fac x3 / *Sto x2) -8/Storage -7/Factory (discovered 4 exits: *Fac x2 / *Low x2) -7/Lower Caves -7/Lower Caves (discovered 2 exits: *Fac / *Zio) -7/Zion -6/Proximity Caves -6/Factory (discovered 7 exits: *Fac x3 / *Low x2 / *Ext x2) -6/Extension (discovered 2 exits: *Fac / *Cet) -6/Cetus (discovered 2 exits: *Fac / *Arc) -6/Archives (discovered 3 exits: *Fac / *Hub x2) -6/Hub_04(d) (discovered 4 exits: *Fac x4) -5/Factory (discovered 3 exits: *Fac / *Upp x2) -5/Upper Caves -5/Upper Caves (discovered 2 exits: *Fac / *War) -5/Warlord -4/Proximity Caves -4/Factory (discovered 4 exits: [*Res x2] / Upp x2) History --------- Turn | Location | Event 13 | -11/Scrapyard | Discovered new exit (range 16) 93 | -11/Scrapyard | Entered Materials 228 | -10/Materials | Discovered new exit (range 15) 240 | -10/Materials | Discovered new exit (range 16) 315 | -10/Materials | Build established: Mutant 470 | -10/Materials | Discovered new exit (range 13) 536 | -10/Materials | Discovered new exit (range 16) 693 | -10/Materials | Derelicts attacked the area 955 | -10/Materials | Discovered new exit (range 7) 1115 | -10/Materials | Identified exit to Materials 1168 | -10/Materials | Learned location of 2 exits from Mines 1216 | -10/Materials | Learned Storage stockpile data 1449 | -10/Materials | Entered Mines 1451 | -10/Mines | Identified exit to Subcaves 1503 | -10/Mines | Deemed a non-threat by the Exiles lab entrance 1503 | -10/Mines | Discovered new exit (range 5) 1543 | -10/Mines | Assembled infested the area 1548 | -10/Mines | Assisted by a Guerilla fighting off Assembled 1677 | -10/Mines | Core integrity fell below 50% 1743 | -10/Mines | Received a Rocket Launcher from a helpful Derelict 2368 | -10/Mines | Core integrity fell below 20% 2526 | -10/Mines | Entered Materials 2526 | -9/Materials | Evolved 2 slots: Utility x2 2527 | -9/Materials | Identified exit to Mines 3403 | -9/Materials | Central database locked down 3484 | -9/Materials | Identified exit to Materials 3658 | -9/Materials | Learned Storage stockpile data 4290 | -9/Materials | Entered Mines 4295 | -9/Mines | Assisted by bots powering up and referring to "LRC-V3" 4499 | -9/Mines | Found a hidden stash of uninstalled traps 4890 | -9/Mines | Discovered exit to Materials (range 8) 5007 | -9/Mines | A Derelict revealed a hidden shortcut to a safe place 5242 | -9/Mines | Learned location of Zion (-7) 5814 | -9/Mines | Entered Materials 5814 | -8/Materials | Accompanied by 2 allies 5814 | -8/Materials | Evolved 2 slots: Propulsion x2 5815 | -8/Materials | Identified exit to Storage 6082 | -8/Materials | Discovered new exit (range 4) 6940 | -8/Materials | Discovered new exit (range 13) 7030 | -8/Materials | Lost 3 parts (2u1w) 7195 | -8/Materials | Repaired Imp. Hover Unit+ 7246 | -8/Materials | Repaired Bore Cannon 7499 | -8/Materials | Discovered new exit (range 8) 7741 | -8/Materials | Learned Storage garrison access intel 7797 | -8/Materials | Learned Storage non-interactive machine intel 7807 | -8/Materials | Repaired Adv. Heat Sink 7845 | -8/Materials | Learned Storage emergency access door positions 7883 | -8/Materials | Learned 4 Recycling zone layouts 7913 | -8/Materials | Learned location of 1 exit from Extension 8009 | -8/Materials | Entered Storage 8012 | -8/Storage | Loaded intel: 18 non-interactive machine locations 8315 | -8/Storage | Repaired Fission Core? 8929 | -8/Storage | Assisted by bots powering up and referring to "LRC-V3" 9086 | -8/Storage | Lost 3 allies 9223 | -8/Storage | Build established: Commander-Mutant 9609 | -8/Storage | Learned Factory terminal intel 9657 | -8/Storage | Found Prototype Launcher 9657 | -8/Storage | Identified Gui. EMP Blaster 9658 | -8/Storage | Identified exit to Factory 9698 | -8/Storage | Learned location of 2 exits from Factory 9730 | -8/Storage | Learned Factory emergency access door positions 9754 | -8/Storage | Learned location of 1 exit from Recycling 9786 | -8/Storage | Learned Factory trap positions 9809 | -8/Storage | Met a pair of Derelict thieves 9828 | -8/Storage | Learned 4 Lower Caves zone layouts 9892 | -8/Storage | Core integrity fell below 50% 9894 | -8/Storage | Lost 3 allies 9914 | -8/Storage | Destroyed 7 combat bots 10100 | -8/Storage | Build established: Mutant 10224 | -8/Storage | Entered Factory 10224 | -7/Factory | Evolved 2 slots: Propulsion x1, Utility x1 10225 | -7/Factory | Identified exit to Lower Caves 10226 | -7/Factory | Identified exit to Factory 10227 | -7/Factory | Loaded intel: 79 trap records 10229 | -7/Factory | Loaded intel: 26 terminal locations 10530 | -7/Factory | Build established: Scout 10585 | -7/Factory | Fabricated Imp. Gravmag System (x2) 10988 | -7/Factory | Entered Lower Caves 10989 | -7/Lower Caves | Identified exit to Lower Caves 11003 | -7/Lower Caves | Encountered a Warlord checkpoint 11208 | -7/Lower Caves | Learned 4 Factory zone layouts 11266 | -7/Lower Caves | Spotted B-75 Beast 11274 | -7/Lower Caves | Learned 8 Factory zone layouts 11814 | -7/Lower Caves | Entered another Lower Caves area 11840 | -7/Lower Caves | Discovered exit to Factory (range 5) 12028 | -7/Lower Caves | Attracted the attention of an 0b10 checkpoint 12206 | -7/Lower Caves | Encountered a Warlord checkpoint 12369 | -7/Lower Caves | Spotted B-75 Beast 12484 | -7/Lower Caves | Discovered new exit (range 5) 12485 | -7/Lower Caves | Identified exit to Zion 12486 | -7/Lower Caves | Entered Zion 12496 | -7/Zion | Given A8's code to call for help 12510 | -7/Zion | Found Unknown Piercing Weapon 12510 | -7/Zion | Identified CR-A16's Pointy Stick 12512 | -7/Zion | Discovered new exit (range 13) 12524 | -7/Zion | Identified exit to Proximity Caves 12557 | -7/Zion | Learned location of Testing (-2) 12590 | -7/Zion | Received a visual enhancement algorithm 12591 | -7/Zion | Ran a visual enhancement algorithm 12801 | -7/Zion | Entered Proximity Caves 12959 | -6/Proximity Caves | Received a Behemoth hack from an annoying Tinkerer 13310 | -6/Proximity Caves | Spotted B-75 Beast 13330 | -6/Proximity Caves | Learned location of 1 exit from Factory 13378 | -6/Proximity Caves | Discovered exit to Factory (range 16) 13611 | -6/Proximity Caves | Entered Factory 13611 | -6/Factory | Evolved 2 slots: Utility x2 13612 | -6/Factory | Identified exit to Factory 13613 | -6/Factory | Identified exit to Lower Caves 13832 | -6/Factory | Central database locked down 13890 | -6/Factory | Watched by a mysterious "MATRIX" hacker. 13907 | -6/Factory | Discovered exit to Factory (range 10) 13910 | -6/Factory | Build established: Hacker-Scout 13929 | -6/Factory | Identified exit to Extension 13968 | -6/Factory | Entered Extension 14209 | -6/Extension | Rescued a captive Derelict 14210 | -6/Extension | Rescued a captive Derelict 14278 | -6/Extension | Rescued a captive Derelict 14497 | -6/Extension | Lost 5 allies 14616 | -6/Extension | Spotted B-75 Beast 14704 | -6/Extension | Lost 5 allies 14757 | -6/Extension | Revealed the true nature of CR-A16's Pointy Stick 14760 | -6/Extension | Destroyed B-75 Beast 14800 | -6/Extension | Spotted B-75 Beast 14865 | -6/Extension | Destroyed B-75 Beast 15135 | -6/Extension | Rescued a captive Derelict 15135 | -6/Extension | Rescued a captive Derelict 15277 | -6/Extension | Lost 3 allies 15294 | -6/Extension | Rescued A7 15324 | -6/Extension | Rescued a captive Derelict 15325 | -6/Extension | Rescued a captive Derelict 15327 | -6/Extension | Rescued a captive Derelict 15330 | -6/Extension | Rescued a captive Derelict 15330 | -6/Extension | Rescued a captive Derelict 15394 | -6/Extension | Rescued a captive Derelict 15442 | -6/Extension | Discovered new exit (range 6) 15452 | -6/Extension | Identified exit to Cetus 15512 | -6/Extension | Entered Cetus 15512 | -6/Cetus | Accompanied by 11 allies (A7) 15517 | -6/Cetus | Acquired a Cetus Manufacturing Module code from A7 15529 | -6/Cetus | Spotted Cetus Guard 15530 | -6/Cetus | Spotted Cetus Guard 15535 | -6/Cetus | Destroyed Cetus Guard 15535 | -6/Cetus | Destroyed Cetus Guard 15536 | -6/Cetus | Destroyed Cetus Guard 15536 | -6/Cetus | Spotted Cetus Guard 15537 | -6/Cetus | Destroyed Cetus Guard 15555 | -6/Cetus | System corruption reached 10% 15601 | -6/Cetus | Started Cetus Manufacturing Module 15626 | -6/Cetus | Manufactured an Enhanced Grunt 15646 | -6/Cetus | Discovered new exit (range 20) 15651 | -6/Cetus | Manufactured an Enhanced Grunt 15665 | -6/Cetus | Spotted Cetus Guard 15666 | -6/Cetus | Spotted Cetus Guard 15676 | -6/Cetus | Manufactured an Enhanced Grunt 15679 | -6/Cetus | Allies destroyed Cetus Guard 15685 | -6/Cetus | Spotted Cetus Guard 15685 | -6/Cetus | Spotted Cetus Guard 15688 | -6/Cetus | Allies destroyed Cetus Guard 15691 | -6/Cetus | Allies destroyed Cetus Guard 15701 | -6/Cetus | Manufactured an Enhanced Grunt 15701 | -6/Cetus | Allies destroyed Cetus Guard 15706 | -6/Cetus | Discovered exit to Factory (range 19) 15711 | -6/Cetus | Met Revision 17 15726 | -6/Cetus | Manufactured an Enhanced Grunt 15781 | -6/Cetus | Identified exit to Archives 15816 | -6/Cetus | Build established: Commander-Mutant 15821 | -6/Cetus | Entered Archives 15821 | -6/Archives | Accompanied by 15 allies (A7) 15913 | -6/Archives | Discovered new exit (range 20) 15929 | -6/Archives | Lost 3 allies 15965 | -6/Archives | Discovered new exit (range 20) 16043 | -6/Archives | Discovered exit to Factory (range 20) 16231 | -6/Archives | Identified exit to Hub_04(d) 16260 | -6/Archives | Entered Hub_04(d) 16260 | -6/Hub_04(d) | Accompanied by 11 allies 16263 | -6/Hub_04(d) | Spotted B-75 Beast 16268 | -6/Hub_04(d) | Destroyed B-75 Beast 16496 | -6/Hub_04(d) | Build established: Commander-Scout 16584 | -6/Hub_04(d) | Network Hub disabled 16584 | -6/Hub_04(d) | Network Hub disabled 16600 | -6/Hub_04(d) | Spotted Lightning 16604 | -6/Hub_04(d) | Allies destroyed Lightning 16619 | -6/Hub_04(d) | Entered Factory 16619 | -5/Factory | Evolved 2 slots: Propulsion x1, Utility x1 16636 | -5/Factory | Lost 4 allies 16690 | -5/Factory | Identified exit to Upper Caves 16819 | -5/Factory | Lost 5 parts (1p3n1u) 16825 | -5/Factory | Destroyed 7 combat bots 17147 | -5/Factory | Build established: Hacker-Scout 17219 | -5/Factory | First assault squad dispatched 17416 | -5/Factory | Discovered new exit (range 9) 17450 | -5/Factory | Repaired Cmb. Airjet+ 17457 | -5/Factory | Fabricated Weapon Mount? 17499 | -5/Factory | Repaired Gravmag Array 17562 | -5/Factory | Repaired Broken Adv. KE Penetrator 17600 | -5/Factory | Fabricated Prc. Energy Filter? 17860 | -5/Factory | Entered Upper Caves 17913 | -5/Upper Caves | Learned Factory interactive machine intel 18052 | -5/Upper Caves | Spotted B-75 Beast 18135 | -5/Upper Caves | Found DCF Scrap (13 items) 18207 | -5/Upper Caves | Destroyed B-75 Beast 18268 | -5/Upper Caves | Discovered new exit (range 6) 18270 | -5/Upper Caves | Identified exit to Upper Caves 18391 | -5/Upper Caves | Attracted the attention of an 0b10 outpost 18450 | -5/Upper Caves | Entered another Upper Caves area 18494 | -5/Upper Caves | Learned location of Armory (-3) 18522 | -5/Upper Caves | Discovered new exit (range 16) 18529 | -5/Upper Caves | Identified exit to Factory 18535 | -5/Upper Caves | Found Alien Artifact 18535 | -5/Upper Caves | Identified Core Expander 18535 | -5/Upper Caves | Installed Core Expander, added new Weapon slot 18548 | -5/Upper Caves | Spotted B-75 Beast 18850 | -5/Upper Caves | Attracted the attention of an 0b10 checkpoint 19167 | -5/Upper Caves | Discovered new exit (range 7) 19170 | -5/Upper Caves | Identified exit to Warlord 19170 | -5/Upper Caves | Entered Warlord 19340 | -5/Warlord | Learned Factory recycling unit intel 19340 | -5/Warlord | Learned Research terminal intel 19341 | -5/Warlord | Learned 4 Research zone layouts 19341 | -5/Warlord | Learned 4 Research zone layouts 19341 | -5/Warlord | Learned 4 Research zone layouts 19341 | -5/Warlord | Learned Research stockpile data 19420 | -5/Warlord | Warlord's base attacked by MAIN.C 19431 | -5/Warlord | Found Prototype Energy Gun 19431 | -5/Warlord | Identified Vortex Rail 19436 | -5/Warlord | Found Prototype Energy Gun 19436 | -5/Warlord | Identified Vortex Rifle 19439 | -5/Warlord | Found Vortex Rifle 19508 | -5/Warlord | Found Prototype Device 19508 | -5/Warlord | Identified Exp. Focal Shield 19515 | -5/Warlord | Found Prototype Processor 19524 | -5/Warlord | Found Prototype Reactor 19548 | -5/Warlord | Met Warlord 19580 | -5/Warlord | Build established: Hacker-Mutant 19731 | -5/Warlord | Warlord forces counterattacked 19755 | -5/Warlord | Spotted Striker 19808 | -5/Warlord | Lost 6 allies 19818 | -5/Warlord | Spotted Striker 19840 | -5/Warlord | Spotted B-86 Titan 19873 | -5/Warlord | Lost 12 allies 19993 | -5/Warlord | Spotted Striker 20095 | -5/Warlord | Warlord base infiltrated, sounded retreat 20098 | -5/Warlord | Spotted Striker 20098 | -5/Warlord | Destroyed Striker 20122 | -5/Warlord | Spotted Striker 20128 | -5/Warlord | Spotted Executioner 20132 | -5/Warlord | Destroyed Executioner 20168 | -5/Warlord | Lost 9 allies 20185 | -5/Warlord | Spotted Striker 20260 | -5/Warlord | Spotted Striker 20274 | -5/Warlord | Discovered new exit (range 14) 20280 | -5/Warlord | Identified exit to Proximity Caves 20312 | -5/Warlord | Entered Proximity Caves 20314 | -4/Proximity Caves | Spotter reported a threat 20315 | -4/Proximity Caves | Spotter reported a threat 20317 | -4/Proximity Caves | Lost 10 allies 20806 | -4/Proximity Caves | Learned Research garrison access intel 20930 | -4/Proximity Caves | Entered Factory 20930 | -4/Factory | Evolved 2 slots: Utility x2 20931 | -4/Factory | Loaded intel: 54 interactive machine locations 20932 | -4/Factory | Loaded intel: 8 recycling unit locations 20939 | -4/Factory | Targeted by mysterious "MATRIX" hacker. 20939 | -4/Factory | Identified exit to Upper Caves 21030 | -4/Factory | Identified Exp. Core Analyzer 21097 | -4/Factory | Discovered new exit (range 20) 21133 | -4/Factory | Found Prototype Hackware 21180 | -4/Factory | Search patrols dispatched 21313 | -4/Factory | Identified Exp. Hacking Suite 21354 | -4/Factory | Build established: Wizard-Scout 21423 | -4/Factory | Fabricated Exp. Utility Shielding? 21430 | -4/Factory | Search patrols dispatched 21491 | -4/Factory | Fabricated Exp. Sensor Array? 21720 | -4/Factory | Spotted B-86 Titan 21754 | -4/Factory | Fabricated Gamma Bomb Array? 21841 | -4/Factory | Fabricated Exp. Utility Shielding? 21930 | -4/Factory | First assault squad dispatched 22044 | -4/Factory | Build established: Hacker-Scout 22122 | -4/Factory | Destroyed 10 combat bots 22301 | -4/Factory | Discovered new exit (range 12) 22372 | -4/Factory | Fabricated Prc. Energy Filter? 22527 | -4/Factory | Core integrity fell below 50% 22536 | -4/Factory | Core integrity fell below 20% 22542 | -4/Factory | Destroyed by L-61 Swordsman with Power Sword Last Messages --------------- 22509_ Assembly Bed disabled. 22511_ Imp. Antigrav System destroyed. 22514_ R-10 Processor collects Adv. KE Penetrator. 22514_ P-70 Sage resets U-05 Engineer, system corruption cleaned. 22515_ System corrupted: Component data lost. 22517_ R-10 Processor collects Propulsion Shielding. 22517_ Imp. Hacking Suite destroyed. 22519_ U-05 Engineer builds a Wall. 22520_ P-70 Sage resets G-73 Enforcer, system corruption cleaned. 22520_ Exp. Sensor Array destroyed. 22522_ C-45 Heavy ARC bursts open, deploying its payload. 22522_ G-73 Enforcer unfolds itself. 22522_ B-60 Warrior unfolds itself. 22522_ G-67 Veteran unfolds itself. 22522_ I-47 Archangel unfolds itself. 22523_ U-05 Engineer builds a Wall. 22529_ Mic. Fission Core destroyed. 22534_ System corrupted: Component data lost. 22534_ Enh. Optical Array severed. 22538_ Adv. Signal Interpreter severed. Map ----- +----------------------------------------------------+ | #??????????????????????????????????????????????? | | ??????????????????????????????????????????????? | | #??????????????????????????????????????????????? | | #??????????????????????????????????????????????? | | #??????????????????????????????????????????????? | | #??????????????????????????????????????????????? | | #??????????????????????????????????????????????? | | #????????????????????????????? ????????????? | | #????????????????????????????? #???????????? | | #????????????????????????????? #???????????? | | #????????????????????????????# #???????????? | | #????????????????????????????# #???????????? | | ############+################# #???????????? | | ! #??????"?"??? | | #??#???"T"??? | | """ ##? ???"""??? | | G" T#? ????????? | | """ #? ????????? | | +######+########## ###+######??? | | ?????????????????# # #??? | | ?????""??????????# ^ i g # #??? | | ?????"Y??????##### """"" # " " " #?## | | ?????""??????+ """""" # " " " +? | | ?????????????##### % """""" # " " " #?# | | ?????????????????# b"""""" # " " " #?# | | ?????????????????# pgpl@ g # " " " #?# | | ?????????????????# g""" g" # " " " #?# | | ?????????????????# p""""" # " " " ### | | ?????????????????# g"""" # " " " # | | ?????????????????# """""" % # " " " # "" | | ??????????######## g b # / T" | | """""" # # | | ?????????########### """"""% ######## # | | ???????????????????# """""" #?????## #### | | ??????############## """""" #??????# ## | | ? #??????# ] ## | | ? #????############# | | ? ###### #######?# | | ?? #################### < #??? | | ???????##???????????####+#+######## #???? | | #+######"#???????????# * ##### ##### | | #????????????# + | | #????????????# """ """ ########## ##### | | #????????????# [ """ """ #????????# #???? | | #????????????# """ """ #??????### ###?? | | ##???????????# #??????# #?? | | " ##???????????# """ ######## #?? | | " ##???????????# """ + #?? | | " #????????????# """ ######## #?? | | " """ #????????????# "Y" #??????# #?? | +----------------------------------------------------+ Best States ------------- Heat Dissipation 61 Coolant Potential 50 Energy Generation 21 Energy Capacity 360 Matter Stores 300 Matter Capacity 300 Sight Range 22 Robot Scan Range 20 Terrain Scan Density 10 Armor Coverage 600 Resistance: KI 30 Utility Shielding 90 Evasion (%) 67 Targeting Accuracy 20 Core Analysis 8 Recoil Reduction 4 Energy Filtering 50 Offensive Hacking 84 Defensive Hacking 12 Authchip Count 4 Item Schematics ----------------- Hcp. Storage Unit | -10/Materials | Hacked Huge Storage Unit | -10/Materials | Hacked Hacking Suite | -9/Materials | Scanalyzed Heat Sink | -7/Factory | Hacked Weapon Mount | -6/Extension | Hacked Med. Reactive Plating | -6/Extension | Hacked Hvy. Reactive Plating | -6/Extension | Hacked Exp. Utility Shielding | -5/Factory | Hacked Prc. Energy Filter | -5/Factory | Hacked Gamma Bomb Array | -4/Factory | Hacked Lrn. Terrain Scanner | -4/Factory | Hacked Sml. Storage Unit | -4/Factory | Hacked Exp. Sensor Array | -4/Factory | Hacked Exp. Terrain Scanner | -4/Factory | Hacked Adv. EM Shield | -4/Factory | Hacked Robot Schematics ------------------ None Fabricated ------------ Imp. Gravmag System | x2 | -7/Factory | Preloaded Weapon Mount | x2 | -5/Factory | Authchip Prc. Energy Filter | x1 | -5/Factory | Authchip Exp. Utility Shielding | x1 | -4/Factory | Authchip Exp. Sensor Array | x1 | -4/Factory | Authchip Gamma Bomb Array | x1 | -4/Factory | Authchip Exp. Utility Shielding | x1 | -4/Factory | Authchip Prc. Energy Filter | x1 | -4/Factory Repaired ---------- Imp. Hover Unit | 68% | -8/Materials Bore Cannon | 70% | -8/Materials Adv. Heat Sink | 48% | -8/Materials Fission Core | 47% | -8/Storage Cmb. Airjet | 1% | -5/Factory Gravmag Array | 20% | -5/Factory Adv. KE Penetrator | 37% | -5/Factory | Broken Studied --------- Hover Unit | -8/Materials | Hacked Imp. Hover Unit | -8/Materials | Hacked Hvy. Assault Rifle | -8/Materials | Hacked Lgt. Nuclear Core | -8/Materials | Hacked Spread Laser | -8/Materials | Hacked Cmb. Airjet | -6/Factory | Hacked Gravmag Array | -5/Factory | Hacked Linear Gravjet | -5/Factory | Hacked Lgt. Angular Momentum Engine | -5/Factory | Hacked Antigrav System | -5/Factory | Hacked Alien Tech Used ----------------- Core Expander Achievements -------------- My Bad Challenges ------------ None Game ------ Seed PulseAlertChaingun Manual? 0 Play Time 04:41:12 Cumulative 537.5 hours Start 2026.03.26 @ 01:09:57 End 2026.03.28 @ 03:53:22 Sessions 9 Manual Loads 0 Difficulty Rogue Special Mode None Game No. 251 Rogue 251 Adventurer 0 Explorer 0 Win Type - Total 10 Types 8/0/1/0/0/0/1/0/0/0 Lore% 73 Gallery% 71 Achievement% 52 Wizard Run 0 Options --------- Layout 0 ASCII 0 Keyboard 1 Movement Vi Keybinds 0 Fullscreen 2 Font 18/SmallcapsGlow Map View 76x50 Zoom Use 0% Tactical HUD 1 Map Filters NONE Filters NONE Steam 1 RUN: c886e124-fdb5-4087-981f-4abd9d8781a6